Cogmind - Beta 12 @@@ ROGUE MODE // 2023.11.30 @ 22:34:00 Player: Dosh Result: Destroyed by S-27 Virus with Autogun Performance ------------- Evolutions (6) 3000 Regions Visited (12) 2400 Robots Destroyed (133) 665 Value Destroyed (4676) 4676 Prototype IDs (31) 620 Alien Tech Used (0) 0 Bonus (1273) 1273 TOTAL SCORE: 12634 Bonus ------- High Alert Combat Kills 89 Follower Combat Kills 384 Entered DSFs 500 Aligned with FarCom 300 Cogmind --------- Core Integrity 0/1150 Matter 36/300 Energy 100/100 System Corruption 2% Temperature Cool (0) Movement Core (200) Ox3 Location -4/Factory Parts ------- > --- POWER (2) -------- (None) > --- PROPULSION (4) --- (None) > --- UTILITY (9) ------ (None) > --- WEAPON (4) ------- Hardcell Cannon > --- INVENTORY (5) ---- Centrium Leg High-capacity Storage Unit Advanced Signal Interpreter Advanced Terrain Scanner Ragnarok Missile Launcher Peak State ------------ > --- POWER ------------ Light Nuclear Core Light Antimatter Reactor > --- PROPULSION ------- Medium Treads Armored Wheel Centrium Wheel > --- UTILITY ---------- Improved Heat Sink Improved Heat Sink High-capacity Storage Unit Improved Target Analyzer Improved Weapon Cycler Improved Weapon Cycler Advanced Transmission Jammer Improved Corruption Screen > --- WEAPON ----------- Heavy Phase Cannon Advanced Assault Cannon Antimatter Cannon Mass Driver > --- INVENTORY -------- Deuterium Engine Light Nuclear Core Light Nuclear Core High-capacity Matter Pod Advanced Signal Interpreter Advanced Terrain Scanner Gauss Rifle Gauss Rifle Advanced Assault Cannon Mass Driver Heavy Mace Deploy-a-Sentry [Rating: 86] Favorites ----------- Power Light Nuclear Core Engine Reinforced Ion Engine Power Core Light Nuclear Core Reactor Light Antimatter Reactor Propulsion Medium Treads Treads Medium Treads Wheel Centrium Wheel Utility High-capacity Storage Unit Device Improved Shield Generator Storage High-capacity Storage Unit Processor Advanced Targeting Computer Hackware Hacking Suite Protection Heavy Armor Plating Weapon Assault Rifle Energy Gun Lightning Gun Energy Cannon Plasma Cannon Ballistic Gun Assault Rifle Ballistic Cannon Heavy Flak Cannon Launcher Rocket Launcher Impact Weapon Heavy Mace Build | -11 -10 -10 -10 -9 -8 -7 -6 -5 -5 -4 -4 -4 ------- Run | Jun Mat Min Exi Min Mat Fac Fac Fac DSF Fac Was Fac Slots Evolved 12 | . . . . . 4 2 2 2 . 2 . . Power 1 | . . . . . . 1 . . . . . . Propulsion 2 | . . . . . 1 . 1 . . . . . Utility 7 | . . . . . 3 1 . 2 . 1 . . Weapon 2 | . . . . . . . 1 . . 1 . . Parts Attached 122 | 6 7 . 1 . 38 19 18 2 5 24 1 1 Power 20 | 1 . . . . 6 4 3 . 1 5 . . Engine 6 | 1 . . . . 2 1 1 . . 1 . . Core 13 | . . . . . 4 3 2 . 1 3 . . Reactor 1 | . . . . . . . . . . 1 . . Propulsion 30 | 2 3 . . . 11 3 4 . 1 6 . . Treads 22 | 2 3 . . . 8 3 4 . 1 1 . . Leg . | . . . . . . . . . . . . . Wheel 8 | . . . . . 3 . . . . 5 . . Hover . | . . . . . . . . . . . . . Flight . | . . . . . . . . . . . . . Utility 36 | 1 2 . 1 . 11 8 4 2 2 5 . . Device 8 | . . . . . . 2 1 1 2 2 . . Storage 4 | 1 1 . 1 . . . . . . 1 . . Processor 9 | . 1 . . . 5 1 . . . 2 . . Hackware 2 | . . . . . . 2 . . . . . . Protection 13 | . . . . . 6 3 3 1 . . . . Artifact . | . . . . . . . . . . . . . Weapon 36 | 2 2 . . . 10 4 7 . 1 8 1 1 Energy Gun 3 | . . . . . . 1 2 . . . . . Energy Cannon 3 | . . . . . . 1 1 . . 1 . . Ballistic Gun 18 | 2 2 . . . 9 1 1 . . 3 . . Ballistic Cannon 9 | . . . . . 1 1 2 . 1 3 . 1 Launcher 2 | . . . . . . . 1 . . . 1 . Special Weapon . | . . . . . . . . . . . . . Impact Weapon 1 | . . . . . . . . . . 1 . . Slashing Weapon . | . . . . . . . . . . . . . Piercing Weapon . | . . . . . . . . . . . . . Special Melee Weapon . | . . . . . . . . . . . . . Unidentified Prototypes 4 | . . . . . 2 . 1 . . . 1 . Corrupted Parts 1 | . . . . . . 1 . . . . . . System Corruption 2 | . . . . . . 2 . . . . . . Parts Lost 70 | . . . . . 14 6 10 . 9 30 1 . Power 14 | . . . . . 4 . 2 . 2 6 . . Propulsion 17 | . . . . . 4 2 2 . 2 7 . . Utility 20 | . . . . . 3 3 3 . 3 7 1 . Weapon 19 | . . . . . 3 1 3 . 2 10 . . Highest Loss Streak 14 | . . . . . 5 2 7 . 6 14 1 . To Critical Strikes . | . . . . . . . . . . . . . Average Slot Usage (%) 84 | . 97 100 100 100 80 92 81 88 79 73 4 8 Engine 7 | . 14 14 14 14 5 7 6 5 5 2 . . Core 3 | . . . . . 2 7 5 5 2 2 . . Treads 21 | . 25 28 28 28 22 22 20 23 17 9 . . Device 4 | . . . . . . 7 5 11 18 19 . . Storage 8 | . 14 14 14 14 9 7 6 5 5 5 . . Processor 10 | . 13 14 14 14 14 7 6 5 5 9 3 . Hackware 2 | . . . . . . 8 5 . . . . . Protection 4 | . . . . . 8 6 5 11 6 . . . Ballistic Gun 12 | . 27 28 28 28 15 6 3 . . . . . Ballistic Cannon 3 | . . . . . 2 1 6 11 14 11 . 4 Naked Turns 9 | . . . . . . . . . . . 9 . Heaviest Build 99 | 14 19 19 49 49 69 85 92 96 99 95 13 23 Greatest Support 96 | 40 40 40 40 40 84 84 96 96 96 68 3 3 Greatest Overweight (x) 19 | 3 4 . 1 1 19 1 2 . 2 16 4 7 Average Overweight (x) . | . . . . 1 . . . . . 1 . 5 Largest Inventory Capacity 20 | 8 10 10 20 20 20 20 20 20 20 20 5 5 Average Capacity 17 | 7 8 10 13 20 20 20 20 20 20 19 5 5 Most Carried 20 | 4 10 10 10 10 20 19 19 8 14 15 4 5 Average Carried 13 | 2 7 9 9 10 16 14 15 7 12 10 3 4 Final Capacity 20 | 8 10 10 20 20 20 20 20 20 20 5 5 5 Final Carried 20 | 4 10 8 10 10 20 18 9 8 14 3 4 5 Class Distribution -------------------- 74% | Mutant 6% | Hacker-Mutant 5% | Scavenger-Gunner 5% | Tank 4% | Scavenger-Mutant Dominant Class ---------------- Mutant | -10/Materials Mutant | -10/Mines Mutant | -10/Exiles Mutant | -9/Mines Mutant | -8/Materials Mutant | -7/Factory Tank | -6/Factory Scavenger-Tank | -5/Factory Scavenger-Tank | -5/DSF Scavenger-Gunner | -4/Factory Mutant | -4/Waste Mutant | -4/Factory Resources | -11 -10 -10 -10 -9 -8 -7 -6 -5 -5 -4 -4 -4 ----------- Run | Jun Mat Min Exi Min Mat Fac Fac Fac DSF Fac Was Fac Matter Collected 4166 | 208 348 12 . 34 1432 810 322 . 264 736 . . Remotely . | . . . . . . . . . . . . . Salvage Created 4495 | . 362 13 . 94 1865 805 316 . 382 628 . 30 Parts 246 | . 41 2 . . 100 53 5 . 23 20 . 2 Haulers Intercepted 5 | . 2 . . . 3 . . . . . . . Recyclers Shooed 5 | . 1 . . . 1 1 1 . . 1 . . Parts Field Recycled . | . . . . . . . . . . . . . Retrieved Matter . | . . . . . . . . . . . . . Parts Self-Destructed . | . . . . . . . . . . . . . Prevented . | . . . . . . . . . . . . . Kills | -11 -10 -10 -10 -9 -8 -7 -6 -5 -5 -4 -4 -4 ------- Run | Jun Mat Min Exi Min Mat Fac Fac Fac DSF Fac Was Fac Combat Hostiles Destroyed 101 | . 10 1 . 2 39 21 3 . 14 9 . 2 Guns 52 | . 10 1 . 2 28 10 . . . 1 . . Cannons 47 | . . . . . 11 11 1 . 14 8 . 2 AOE 2 | . . . . . . . 2 . . . . . Classes Destroyed 16 | . 5 . . . 6 2 . . 2 1 . . Worker 7 | . . . . . 4 2 1 . . . . . Builder 2 | . . . . . . . . . . 2 . . Tunneler 1 | . . . . . . 1 . . . . . . Hauler 5 | . 2 . . . 3 . . . . . . . Recycler 7 | . . . . . 2 . 2 . . 3 . . Operator 2 | . 1 . . . 1 . . . . . . . Watcher 8 | . 3 . . . 4 . 1 . . . . . Swarmer 36 | . 9 1 . . 11 4 . . 9 . . 2 Grunt 35 | . 1 . . 2 18 9 2 . . 3 . . Brawler 1 | . . . . . 1 . . . . . . . Duelist 1 | . . . . . 1 . . . . . . . Sentry 11 | . . . . . 7 4 . . . . . . Specialist 3 | . . . . . . . . . 3 . . . Hunter 5 | . . . . . 1 . . . 1 3 . . Programmer 8 | . . . . . . 4 1 . . 3 . . Heavy 1 | . . . . . . . . . 1 . . . Best Kill Streak 10 | . 4 1 . 2 10 4 4 . 8 3 . 2 Combat Bots Only 8 | . 3 1 . 2 8 4 2 . 8 3 . 2 Max Kills in Single Turn 2 | . 2 1 . 1 1 2 2 . 1 2 . 1 Gunslinging 1 | . 1 . . . . . . . . . . . Exploded 1 | . . . . . . . 1 . . . . . Melee . | . . . . . . . . . . . . . Uniques/NPCs Destroyed . | . . . . . . . . . . . . . Combat | -11 -10 -10 -10 -9 -8 -7 -6 -5 -5 -4 -4 -4 -------- Run | Jun Mat Min Exi Min Mat Fac Fac Fac DSF Fac Was Fac Damage Taken 11383 | . 300 79 . 54 3099 1290 1381 . 1246 3477 51 406 Core 2079 | . 47 6 . 11 401 155 237 . 72 886 51 213 Absorbed by Shields 1143 | . . . . . . 528 332 . 283 . . . Regen/Repaired (Parts) 311 | . 69 . . . 242 . . . . . . . Core Remaining (%) 73 | 100 . . . 74 27 77 72 . 92 . . . Volleys Fired 396 | . 43 2 . 4 171 76 18 . 25 50 . 7 Largest 4 | . 2 2 . 2 2 2 3 . 3 4 . 1 Hottest 235 | . 40 40 . 40 63 135 133 . 168 235 . 65 Shots Fired 802 | . 81 4 . 8 333 131 26 . 62 150 . 7 Gun 480 | . 81 4 . 8 279 84 2 . . 22 . . Cannon 316 | . . . . . 54 47 18 . 62 128 . 7 Launcher 6 | . . . . . . . 6 . . . . . Special . | . . . . . . . . . . . . . Kinetic 743 | . 81 4 . 8 333 116 19 . 60 115 . 7 Thermal 42 | . . . . . . 7 . . . 35 . . Explosive 6 | . . . . . . . 6 . . . . . Electromagnetic 11 | . . . . . . 8 1 . 2 . . . Robot Hit Streak 25 | . 8 . . 3 25 20 9 . 9 10 . 3 Robot Miss Streak 6 | . 5 4 . 1 4 4 6 . 5 6 . 6 Penetration Max 1 | . . . . . . . . . . 1 . . Secondary Targets 5 | . 3 . . . 2 . . . . . . . Max Gunslinging Chain 1 | . 1 . . . 1 . . . . . . . Shots Hit Robots 541 | . 40 . . 6 249 100 21 . 39 82 . 4 Core Hits 259 | . 20 2 . 4 94 48 33 . 31 26 . 1 Critical Kills 2 | . . . . . 2 . . . . . . . Critical Parts Destroyed 2 | . . . . . 1 . . . . 1 . . Critical Strikes 16 | . . . . . 5 2 . . 1 8 . . Destroy 4 | . . . . . 3 . . . . 1 . . Blast 12 | . . . . . 2 2 . . 1 7 . . Melee Attacks 4 | . . . . . . . . . . 4 . . Impact 4 | . . . . . . . . . . 4 . . Slashing . | . . . . . . . . . . . . . Piercing . | . . . . . . . . . . . . . Sneak Attacks 1 | . . . . . . . . . . 1 . . Combat Hostiles . | . . . . . . . . . . . . . Follow-up Attacks . | . . . . . . . . . . . . . Damage Inflicted 12153 | 5 571 17 . 70 3873 2158 902 . 1229 3173 . 155 Guns 5248 | . 567 15 . 70 3155 1165 . . . 276 . . Cannons 5663 | . . . . . 647 978 413 . 1229 2241 . 155 Explosions 924 | . . . . . . . 486 . . 438 . . Melee 200 | . . . . . . . . . . 200 . . Ramming 118 | 5 4 2 . . 71 15 3 . . 18 . . Kinetic 10026 | . 567 15 . 70 3802 1869 413 . 1186 1949 . 155 Thermal 1142 | . . . . . . 136 . . . 1006 . . Explosive 486 | . . . . . . . 486 . . . . . Electromagnetic 181 | . . . . . . 138 . . 43 . . . Impact 200 | . . . . . . . . . . 200 . . Slashing . | . . . . . . . . . . . . . Piercing . | . . . . . . . . . . . . . Highest Corruption 8 | . . . . . 8 4 2 . . . . 2 Average Corruption 3 | . . . . . 6 1 1 . . . . 2 Corruption Purged . | . . . . . . . . . . . . . Corruption Blocked 12 | . . . . . . . . . . 7 5 . Effects 94 | . . . . . 62 26 6 . . . . . Message Errors 25 | . . . . . 15 8 2 . . . . . Matter Fused 23 | . . . . . 12 10 1 . . . . . Heat Flow Errors 15 | . . . . . 12 3 . . . . . . Energy Discharges 13 | . . . . . 11 1 1 . . . . . Parts Rejected 2 | . . . . . 1 . 1 . . . . . Parts Fused 2 | . . . . . 1 1 . . . . . . Data Loss (minor) 9 | . . . . . 6 2 1 . . . . . Data Loss (major) 2 | . . . . . 2 . . . . . . . Misfires 1 | . . . . . . 1 . . . . . . Weapon Failures 2 | . . . . . 2 . . . . . . . Overload Shots . | . . . . . . . . . . . . . Overflow Damage 213 | . . . . . 32 . 67 . 1 87 . 26 Projectiles 103 | . . . . . 32 . . . 1 44 . 26 Explosions 110 | . . . . . . . 67 . . 43 . . Melee . | . . . . . . . . . . . . . Knockbacks 53 | . . . . . 8 6 7 . 12 18 . 2 Impact 2 | . . . . . 1 . . . . 1 . . Kinetic 46 | . . . . . 7 4 7 . 10 16 . 2 Secondary 5 | . . . . . . 2 . . 2 1 . . Self-Inflicted Damage 302 | . . . . . . . 294 . . 8 . . Shots 4 | . . . . . . . 4 . . . . . Rammed 18 | 1 3 2 . . 5 3 1 . . 3 . . Targets Rammed 21 | 1 3 2 . . 8 3 1 . . 3 . . Kicked . | . . . . . . . . . . . . . Crushed 3 | . . . . . 3 . . . . . . . Highest Temperature 441 | . . . . 8 273 368 162 . 160 441 . . Average Temperature 95 | . . . . 3 72 113 59 . 47 138 . . Received Heat Transfer 1943 | . . . . 30 1341 240 54 . 108 170 . . Effects 7 | . . . . . 2 2 . . . 3 . . Energy Bleed 4 | . . . . . 2 2 . . . . . . Interference 2 | . . . . . . . . . . 2 . . Damage (minor) 1 | . . . . . . . . . . 1 . . Siege Activations . | . . . . . . . . . . . . . Robots Corrupted . | . . . . . . . . . . . . . Combat Hostiles . | . . . . . . . . . . . . . Parts Fried . | . . . . . . . . . . . . . Impact Corruptions . | . . . . . . . . . . . . . Robots Melted . | . . . . . . . . . . . . . Combat Hostiles . | . . . . . . . . . . . . . Parts Melted 3 | . . . . . 2 . 1 . . . . . Heat Transferred 1142 | . . . . . . 250 . . . 892 . . Parts Sabotaged . | . . . . . . . . . . . . . Parts Stolen . | . . . . . . . . . . . . . Parts Stripped . | . . . . . . . . . . . . . Power Chain Reactions . | . . . . . . . . . . . . . Missiles Intercepted . | . . . . . . . . . . . . . Alert | -11 -10 -10 -10 -9 -8 -7 -6 -5 -5 -4 -4 -4 ------- Run | Jun Mat Min Exi Min Mat Fac Fac Fac DSF Fac Was Fac Peak Influence 624 | . 152 160 . 78 624 381 180 29 297 409 105 137 Initial 283 | . . . . . 29 283 176 29 23 155 90 66 Average 172 | . 42 19 . 71 250 262 75 29 149 139 93 67 Maximum Alert Level 2 | . . . . . 2 1 . . 1 2 . . Low Security (%) 59 | 100 100 100 . 100 39 16 100 100 64 78 100 100 Level 1 33 | . . . . . 38 83 . . 35 21 . . Level 2 6 | . . . . . 21 . . . . . . . Level 3 . | . . . . . . . . . . . . . Level 4 . | . . . . . . . . . . . . . Level 5 . | . . . . . . . . . . . . . High Security . | . . . . . . . . . . . . . Max Security . | . . . . . . . . . . . . . Sterilizations 1 | . . . . . . . . . 1 . . . Squads Dispatched 27 | . 1 . . . 6 11 2 . 2 4 . 1 Investigation 5 | . . . . . 2 3 . . . . . . Extermination 7 | . . . . . . 3 1 . . 2 . 1 Reinforcement 9 | . 1 . . . 1 2 1 . 2 2 . . Assault 1 | . . . . . 1 . . . . . . . Garrison 5 | . . . . . 2 3 . . . . . . Intercept . | . . . . . . . . . . . . . Searches Triggered . | . . . . . . . . . . . . . Construction Impeded 2 | . . . . . . . 1 . . 1 . . Haulers Reinforced 1 | . . . . . . . . . . 1 . . Active Scanning Responses . | . . . . . . . . . . . . . Cargo Convoy Interrupts . | . . . . . . . . . . . . . Stealth | -11 -10 -10 -10 -9 -8 -7 -6 -5 -5 -4 -4 -4 --------- Run | Jun Mat Min Exi Min Mat Fac Fac Fac DSF Fac Was Fac Distress Signals 5 | . 1 . . . 3 . . . . 1 . . Communications Jammed . | . . . . . . . . . . . . . Distress Signals . | . . . . . . . . . . . . . Times Spotted 168 | . 15 4 . 3 61 34 8 . 16 15 5 7 Peak Tracking Total 7 | . 5 3 . 3 7 4 3 . 5 4 5 6 Tactical Retreats 8 | . . . . . 2 3 . . 1 1 . 1 Traps | -11 -10 -10 -10 -9 -8 -7 -6 -5 -5 -4 -4 -4 ------- Run | Jun Mat Min Exi Min Mat Fac Fac Fac DSF Fac Was Fac Traps Triggered 9 | . 2 . . . 2 1 1 . 1 2 . . Indirectly . | . . . . . . . . . . . . . Trap Hack Attempts . | . . . . . . . . . . . . . Triggered . | . . . . . . . . . . . . . Disarmed . | . . . . . . . . . . . . . Reprogrammed . | . . . . . . . . . . . . . Reused . | . . . . . . . . . . . . . Traps Extracted . | . . . . . . . . . . . . . Installed . | . . . . . . . . . . . . . Triggered . | . . . . . . . . . . . . . Machines | -11 -10 -10 -10 -9 -8 -7 -6 -5 -5 -4 -4 -4 ---------- Run | Jun Mat Min Exi Min Mat Fac Fac Fac DSF Fac Was Fac Machines Disabled 27 | . . 1 . . 2 . 7 . . 17 . . Max in Single Turn 14 | . . . . . 1 . 3 . . 14 . . Garrison Access 2 | . . . . . 1 1 . . . . . . Machines Repaired . | . . . . . . . . . . . . . Machines Sabotaged . | . . . . . . . . . . . . . Overloaded Fab Kills . | . . . . . . . . . . . . . Hacking | -11 -10 -10 -10 -9 -8 -7 -6 -5 -5 -4 -4 -4 --------- Run | Jun Mat Min Exi Min Mat Fac Fac Fac DSF Fac Was Fac Machines Accessed 26 | . 5 . 1 . 9 7 1 1 . 2 . . Terminals 15 | . 4 . . . 5 4 1 1 . . . . Fabricators 1 | . . . . . . 1 . . . . . . Repair Stations 5 | . 1 . . . 2 1 . . . 1 . . Recycling Units . | . . . . . . . . . . . . . Scanalyzers 1 | . . . . . 1 . . . . . . . Garrison Access 3 | . . . . . 1 1 . . . 1 . . Total Hacks 63 | . 12 . 1 . 27 17 3 1 . 2 . . Successful 39 | . 10 . 1 . 14 11 1 1 . 1 . . Failed 24 | . 2 . . . 13 6 2 . . 1 . . Catastrophic 5 | . . . . . 3 1 . . . 1 . . Database Lockouts . | . . . . . . . . . . . . . Manual 15 | . 4 . 1 . 6 4 . . . . . . Terminals 38 | . 10 . . . 15 9 3 1 . . . . Fabricators 3 | . . . . . . 3 . . . . . . Repair Stations 10 | . 2 . . . 4 3 . . . 1 . . Recycling Units . | . . . . . . . . . . . . . Scanalyzers 4 | . . . . . 4 . . . . . . . Garrison Access 7 | . . . . . 4 2 . . . 1 . . Terminal Hacks 15 | . 5 . 1 . 4 3 1 1 . . . . Robot Analysis 1 | . . . . . . 1 . . . . . . Prototype ID Bank 2 | . 1 . . . 1 . . . . . . . Open DSF 3 | . . . . . . 1 1 1 . . . . Level Access Points 1 | . 1 . . . . . . . . . . . Branch Access Points 1 | . . . . . 1 . . . . . . . Emergency Access Points 1 | . . . . . 1 . . . . . . . Fabricator Index 1 | . . . . . . 1 . . . . . . Hauler Manifests 1 | . 1 . . . . . . . . . . . Zone Layout 3 | . 2 . . . 1 . . . . . . . EX-Prototype ID Bank 1 | . . . 1 . . . . . . . . . Fabricator Hacks 3 | . . . . . . 3 . . . . . . Network Status 1 | . . . . . . 1 . . . . . . Load Schematic 1 | . . . . . . 1 . . . . . . Build 1 | . . . . . . 1 . . . . . . Repair Station Hacks 6 | . 2 . . . 2 1 . . . 1 . . Scan Component 3 | . 1 . . . 1 1 . . . . . . Repair 2 | . 1 . . . 1 . . . . . . . Refit 1 | . . . . . . . . . . 1 . . Recycling Unit Hacks . | . . . . . . . . . . . . . Scanalyzer 4 | . . . . . 4 . . . . . . . Insert Component 2 | . . . . . 2 . . . . . . . Analyze 2 | . . . . . 2 . . . . . . . Garrison Access Hacks 3 | . . . . . 1 2 . . . . . . Seal Access 2 | . . . . . 1 1 . . . . . . Coupler Status 1 | . . . . . . 1 . . . . . . Unauthorized Hacks 8 | . 3 . . . 3 2 . . . . . . Terminals 8 | . 3 . . . 3 2 . . . . . . Assimilate 2 | . . . . . 1 1 . . . . . . Botnet 6 | . 3 . . . 2 1 . . . . . . Fabricators . | . . . . . . . . . . . . . Repair Stations . | . . . . . . . . . . . . . Recycling Units . | . . . . . . . . . . . . . Scanalyzers . | . . . . . . . . . . . . . Garrison Access . | . . . . . . . . . . . . . Data Cores Recovered . | . . . . . . . . . . . . . Used . | . . . . . . . . . . . . . Hacking Detections 21 | . 3 . . . 7 7 1 1 . 2 . . Full Trace Events 5 | . . . . . 2 3 . . . . . . Feedback Events 1 | . . . . . 1 . . . . . . . Corruption 1 | . . . . . 1 . . . . . . . Feedback Blocked . | . . . . . . . . . . . . . Robot Schematics Acquired . | . . . . . . . . . . . . . Robots Built . | . . . . . . . . . . . . . Authchips . | . . . . . . . . . . . . . Time . | . . . . . . . . . . . . . Total Robot Build Rating . | . . . . . . . . . . . . . Part Schematics Acquired 2 | . . . . . 2 . . . . . . . Parts Built 1 | . . . . . . 1 . . . . . . Authchips . | . . . . . . . . . . . . . Time 36 | . . . . . . 36 . . . . . . Total Part Build Rating 3 | . . . . . . 3 . . . . . . Parts Repaired 2 | . 1 . . . 1 . . . . . . . Time 64 | . 26 . . . 38 . . . . . . . Parts Recycled . | . . . . . . . . . . . . . Recycled Matter . | . . . . . . . . . . . . . Retrieved Matter . | . . . . . . . . . . . . . Retrieved Components . | . . . . . . . . . . . . . Parts Scanalyzed 2 | . . . . . 2 . . . . . . . Part Schematics Acquired 2 | . . . . . 2 . . . . . . . Parts Damaged . | . . . . . . . . . . . . . Bothacking | -11 -10 -10 -10 -9 -8 -7 -6 -5 -5 -4 -4 -4 ------------ Run | Jun Mat Min Exi Min Mat Fac Fac Fac DSF Fac Was Fac Used RIF Installer . | . . . . . . . . . . . . . Robots Hacked . | . . . . . . . . . . . . . Non-combat . | . . . . . . . . . . . . . Combat . | . . . . . . . . . . . . . Robot Hacks Applied . | . . . . . . . . . . . . . Relay Couplers Released . | . . . . . . . . . . . . . Fabnet Peak Effective % . | . . . . . . . . . . . . . Robots Rewired . | . . . . . . . . . . . . . Allies Hacked . | . . . . . . . . . . . . . Hacks Repelled . | . . . . . . . . . . . . . Allies | -11 -10 -10 -10 -9 -8 -7 -6 -5 -5 -4 -4 -4 -------- Run | Jun Mat Min Exi Min Mat Fac Fac Fac DSF Fac Was Fac Total Allies 7 | . . 5 . . 1 1 . . . . . . Largest Group 5 | . . 5 4 2 2 1 . . . . . . Highest-Rated Group 85 | . . 85 77 32 32 26 . . . . . . Highest-Rated Ally 31 | . . 31 31 16 16 26 . . . . . . Total Orders 1 | . . . . . . 1 . . . . . . FOLLOW 1 | . . . . . . 1 . . . . . . Ally Attacks 49 | . . 11 . 12 1 16 2 . . 7 . . Total Damage 1625 | . . 190 . 163 15 772 78 . . 407 . . Kills 11 | . . 4 . 1 . 3 2 . . 1 . . Allies Corrupted . | . . . . . . . . . . . . . Allies Melted . | . . . . . . . . . . . . . Turrets Deployed 3 | . . . . . . 1 1 . . 1 . . Intel | -11 -10 -10 -10 -9 -8 -7 -6 -5 -5 -4 -4 -4 ------- Run | Jun Mat Min Exi Min Mat Fac Fac Fac DSF Fac Was Fac Robot Analysis Total 1 | . . . . . . 1 . . . . . . Derelict Logs Recovered 1 | . . 1 . . . . . . . . . . Drone Launches . | . . . . . . . . . . . . . Drone Recoveries . | . . . . . . . . . . . . . Exploration | -11 -10 -10 -10 -9 -8 -7 -6 -5 -5 -4 -4 -4 ------------- Run | Jun Mat Min Exi Min Mat Fac Fac Fac DSF Fac Was Fac Turns Passed 12388 | 90 1517 555 509 108 3756 2641 1315 40 334 1152 53 318 Spaces Moved 5693 | 53 835 325 279 41 1684 1135 523 24 110 500 89 95 Core 260 | 19 3 . . . 24 . . . . 30 89 95 Treads 5099 | 34 832 325 279 41 1586 1135 523 24 110 210 . . Legs . | . . . . . . . . . . . . . Wheels 334 | . . . . . 74 . . . . 260 . . Hover . | . . . . . . . . . . . . . Flight . | . . . . . . . . . . . . . Fastest Speed 50 | 50 160 160 160 240 105 160 160 160 160 50 50 200 Average Speed 186 | 144 160 160 181 240 177 206 233 160 237 178 58 317 Slowest Speed 1000 | 200 250 160 240 240 1000 243 320 160 320 850 250 400 Overloaded Moves . | . . . . . . . . . . . . . Propulsion Burnouts . | . . . . . . . . . . . . . Robots Hopped 1 | . . . . . . 1 . . . . . . Cave-ins Triggered . | . . . . . . . . . . . . . Exploration Rate (%) 42 | 3 99 67 61 14 89 19 12 1 91 14 76 3 Regions Visited 12 Branch Regions 3 Pre-discovered Areas . | . . . . . . . . . . . . . Known Exits Taken 3 | . . . . . 1 1 . 1 . . . . Unknown Exits Taken 6 | 1 1 1 1 1 . . 1 . . . . . Scrap Searched 1 | . . 1 . . . . . . . . . . Spaces Dug . | . . . . . . . . . . . . . Terrain Destroyed 120 | . . . . . . . 37 . 13 68 . 2 Melee . | . . . . . . . . . . . . . Projectile 53 | . . . . . . . . . 13 38 . 2 AOE 67 | . . . . . . . 37 . . 30 . . Terrain Rammed . | . . . . . . . . . . . . . Walls Destroyed . | . . . . . . . . . . . . . Machines Disabled . | . . . . . . . . . . . . . Actions | -11 -10 -10 -10 -9 -8 -7 -6 -5 -5 -4 -4 -4 --------- Run | Jun Mat Min Exi Min Mat Fac Fac Fac DSF Fac Was Fac Total 6751 | 63 930 356 284 44 2132 1313 591 26 148 670 90 104 Wait 418 | . 31 24 . . 182 68 28 . 1 84 . . Move 5680 | 52 834 324 278 40 1683 1132 522 23 109 500 88 95 Hop 1 | . . . . . . 1 . . . . . . Pick Up 57 | 4 9 1 3 . 23 6 1 1 6 2 1 . Fast Attach 55 | 6 5 . . . 18 4 5 . 5 10 1 1 Attach 48 | . 1 . . . 11 10 11 2 . 13 . . Detach 18 | . . . . . 9 5 2 . . 1 . 1 Swap 19 | . 1 . 1 . 9 5 2 . . 1 . . Drop 30 | . 3 3 2 . 18 1 1 . . 2 . . Fire 396 | . 43 2 . 4 171 76 18 . 25 50 . 7 Melee 4 | . . . . . . . . . . 4 . . Ram 3 | . . . . . 1 . . . . 2 . . Kick . | . . . . . . . . . . . . . Crush 18 | 1 3 2 . . 7 3 1 . . 1 . . Escape Stasis 4 | . . . . . . 2 . . 2 . . . Rewire . | . . . . . . . . . . . . . Trap . | . . . . . . . . . . . . . Miscellaneous . | . . . . . . . . . . . . . Route ------- -11/Junkyard -10/Materials (discovered 5 exits: *Mat x3 / [*Min x2]) -10/Mines (discovered 3 exits: *Mat x2 / *Exi) -10/Exiles -9/Mines -8/Materials (discovered 3 exits: *Fac x3) -7/Factory -6/Factory -5/Factory -5/DSF -4/Factory -4/Waste -4/Factory History --------- Turn | Location | Event 24 | -11/Junkyard | Discovered new exit (range 15) 91 | -11/Junkyard | Entered Materials 147 | -10/Materials | Identified exit to Materials 317 | -10/Materials | Build established: Mutant 497 | -10/Materials | Discovered new exit (range 12) 1135 | -10/Materials | Repaired Assault Rifle 1306 | -10/Materials | Discovered new exit (range 9) 1608 | -10/Materials | Entered Mines 1770 | -10/Mines | Learned 2 Materials zone layouts 1786 | -10/Mines | Assisted by bots powering up and referring to "LRC-V3" 2026 | -10/Mines | Discovered exit to Materials (range 10) 2083 | -10/Mines | Discovered exit to Materials (range 9) 2144 | -10/Mines | Deemed a non-threat by the Exiles lab entrance 2145 | -10/Mines | Discovered new exit (range 5) 2163 | -10/Mines | Entered Exiles 2163 | -10/Exiles | Accompanied by 4 allies 2193 | -10/Exiles | Led the pair of lost Derelicts to a safe place 2203 | -10/Exiles | Met 8R-AWN 2231 | -10/Exiles | Met EX-HEX 2288 | -10/Exiles | Met EX-BIN 2307 | -10/Exiles | Aligned with FarCom system 2309 | -10/Exiles | Given EX-Vault access code 2346 | -10/Exiles | Opened EX-Vault 2354 | -10/Exiles | Found Deploy-a-Sentry 2357 | -10/Exiles | Found Deploy-a-Sentry 2360 | -10/Exiles | Found Deploy-a-Sentry 2391 | -10/Exiles | Warned to stay clear of 0b10 Research branches 2437 | -10/Exiles | Met EX-DEC 2555 | -10/Exiles | Discovered new exit (range 10) 2672 | -10/Exiles | Left Exiles lab with Deploy-a-Sentry 2672 | -10/Exiles | Entered Mines 2672 | -9/Mines | Accompanied by 2 allies 2707 | -9/Mines | Assembled infested the area 2712 | -9/Mines | Assisted by a Guerilla fighting off Assembled 2749 | -9/Mines | Discovered new exit (range 10) 2780 | -9/Mines | Entered Materials 2780 | -8/Materials | Accompanied by 2 allies 2780 | -8/Materials | Evolved 4 slots: Propulsion x1, Utility x3 3599 | -8/Materials | Lost 5 parts (1p2n2w) 4076 | -8/Materials | Discovered new exit (range 16) 4318 | -8/Materials | Destroyed 8 combat bots 4532 | -8/Materials | Core integrity fell below 50% 4538 | -8/Materials | Garrison activated, responded to threat 4779 | -8/Materials | Discovered new exit (range 11) 5305 | -8/Materials | Discovered new exit (range 13) 5465 | -8/Materials | Identified exit to Factory 6115 | -8/Materials | Repaired Hvy. Armor Plating 6380 | -8/Materials | First assault squad dispatched 6536 | -8/Materials | Entered Factory 6536 | -7/Factory | Evolved 2 slots: Power x1, Utility x1 7022 | -7/Factory | Discovered new exit (range 16) 7026 | -7/Factory | Garrison activated, responded to threat 7550 | -7/Factory | Build established: Hacker-Mutant 7974 | -7/Factory | DAS Turret deployed 8172 | -7/Factory | Fabricated Hvy. Armor Plating? 8341 | -7/Factory | Build established: Mutant 8871 | -7/Factory | Identified exit to Factory 9177 | -7/Factory | Entered another Factory area 9177 | -6/Factory | Evolved 2 slots: Propulsion x1, Weapon x1 9186 | -6/Factory | Identified exit to DSF 9521 | -6/Factory | Build established: Tank 10180 | -6/Factory | Build established: Mutant 10366 | -6/Factory | DAS Turret deployed 10397 | -6/Factory | Lost 7 parts (2p1n3u1w) 10399 | -6/Factory | Discovered new exit (range 15) 10492 | -6/Factory | Entered another Factory area 10492 | -5/Factory | Evolved 2 slots: Utility x2 10532 | -5/Factory | Identified exit to DSF 10532 | -5/Factory | Entered DSF 10558 | -5/DSF | Additional patrols routed to DSF 10759 | -5/DSF | Sterilization system engaged 10779 | -5/DSF | Ambient heat levels rising (+10) 10784 | -5/DSF | Destroyed 8 combat bots 10789 | -5/DSF | Lost 6 parts (1p1n3u1w) 10794 | -5/DSF | Ambient heat levels rising (+10) 10809 | -5/DSF | Ambient heat levels rising (+10) 10824 | -5/DSF | Ambient heat levels rising (+10) 10830 | -5/DSF | Discovered new exit (range 16) 10839 | -5/DSF | Ambient heat levels rising (+10) 10854 | -5/DSF | Ambient heat levels rising (+10) 10866 | -5/DSF | Entered Factory 10866 | -4/Factory | Evolved 2 slots: Utility x1, Weapon x1 11701 | -4/Factory | Lost 5 parts (3p2w) 11820 | -4/Factory | DAS Turret deployed 11844 | -4/Factory | Build established: Scavenger-Gunner 11869 | -4/Factory | Lost 5 parts (1p3n1u) 11961 | -4/Factory | Core integrity fell below 50% 11984 | -4/Factory | Lost 14 parts (2p2n5u5w) 12018 | -4/Factory | Sucked down chute 12018 | -4/Factory | Entered Waste 12021 | -4/Waste | Spotted C-40 Crusher 12033 | -4/Waste | EMP discharged 12037 | -4/Waste | Spotted C-40 Crusher 12037 | -4/Waste | Spotted C-40 Crusher 12045 | -4/Waste | Lost 4 parts (1u3w) 12045 | -4/Waste | Spotted C-40 Crusher 12047 | -4/Waste | Spotted C-40 Crusher 12047 | -4/Waste | Spotted C-40 Crusher 12053 | -4/Waste | Crushed by Compactor (1 part destroyed) 12054 | -4/Waste | Core integrity fell below 20% 12056 | -4/Waste | Discovered new exit (range 10) 12062 | -4/Waste | Found Prototype Launcher 12062 | -4/Waste | Identified Ragnarok Missile Launcher 12071 | -4/Waste | Entered Factory 12208 | -4/Factory | Build established: Mutant 12389 | -4/Factory | Destroyed by S-27 Virus with Autogun Last Messages --------------- 12033_ Imp. Cloaking Device fried beyond repair. 12033_ Imp. Corruption Screen intercepted 5% system corruption. 12053_ Imp. Corruption Screen crushed. 12056_ EXIT=FOUND 12062_ Acquired Prototype Launcher. 12062_ Identified Ragnarok Missile Launcher. LOCATION=UNKNOWN GOAL=ESCAPE 12071_ Receiving FarCom transmissions... 12111_ Acquired Hardcell Cannon. 12321_ ALERT: Rogue bot located, Programmers report to Factory Zone 5Q. 12370_ ALERT: All DSF locations entering lockdown mode. 12377_ S-27 Virus knocked back. 12378_ ALERT: Security rotation in progress. 12381_ S-27 Virus destroyed. 12383_ Destroyed VTOL Module. 12383_ S-27 Virus knocked back. 12385_ P-70 Sage resets S-27 Virus, system corruption cleaned. 12385_ Destroyed VTOL Module. 12385_ S-27 Virus destroyed. Map ----- +----------------------------------------------------+ | ?????????????????????????????????????????????????? | | ?????????????????????????????????????????????????? | | ?????????????????????????????????????????????????? | | ?????????????????????????????????????????????????? | | #######+?????????????????????????????????????????? | | ?????????????????????????????????????????? | | ????????????????????????????????????????? | | ????????????????????????????????????????? | | ????????????????????????????????????????? | | ????????????????????????????????????????? | | #######???????????????????? ???????????????????? | | #?????????????????????????? #?????????????????? | | #?????????????????????????? #?????????????????? | | #?????????????????????????? ?????????????????? | | #?????????????????????????? #?????????????????? | | #?????????????????????????? #?????????????????? | | #?????????????????????????? #?????????????????? | | #?????????????????????????# #?????????????????? | | #?????????????????????????# #?????????????????? | | #?????????????????????????# #?????????????????? | | #?????????????????????????" #?????????????????? | | #?????????????????????????# #?????????????????? | | #???????????#######???????# #?????????????????? | | ##+###?###### #???????#%p #?????????????????? | | #?# ########;ssp #####?????????????? | | ### @%*%% ??????? | | ! ##################?????????????? | | ######## #??????????????????????????????? | | #??????#######??????????????????????????????? | | ######???????????????????????????????????????????? | | ?????????????????????????????????????????????????? | | | | | | | | | | | | | | | | | | | | | | | | | | | | | | | | | | | | | | | +----------------------------------------------------+ Best States ------------- Heat Dissipation 71 Energy Generation 30 Energy Capacity 440 Matter Stores 389 Matter Capacity 500 Sight Range 16 Terrain Scan Density 10 Jamming Range 16 Corruption Block 15 Armor Coverage 600 Weapon Cycling 30 Evasion (%) 50 Targeting Accuracy 16 Target Analysis 6 Recoil Reduction 4 Offensive Hacking 10 Defensive Hacking 10 Authchip Count 2 Item Schematics ----------------- Hvy. Armor Plating | -8/Materials | Scanalyzed Imp. Terrain Scan Processor | -8/Materials | Scanalyzed Robot Schematics ------------------ None Fabricated ------------ Hvy. Armor Plating | x1 | -7/Factory Alien Tech Used ----------------- None Achievements -------------- None Challenges ------------ None Game ------ Seed CannonMetafieldSaw Manual? 0 Play Time 01:00:23 Cumulative 34.3 hours Start 2023.11.30 @ 21:28:44 End 2023.11.30 @ 22:34:00 Sessions 1 Manual Loads 0 Difficulty Rogue Special Mode None Game No. 60 Rogue 60 Adventurer 0 Explorer 0 Win Type - Total 0 Types 0/0/0/0/0/0/0/0/0 Lore% 25 Gallery% 31 Achievement% 28 Wizard Run 0 Options --------- ASCII 0 Keyboard 1 Movement Numpad Keybinds 0 Fullscreen 2 Font 18/SmallcapsGlow Map View 76x50 Tactical HUD 1 Map Filters NONE Filters NONE Steam 1 RUN: 23a466a0-a5aa-4677-b773-9c42e4a6422e